[Event "*** SCC Grand Prix: Titled Tuesday Blitz"]
[Site "Chess.com"]
[Date "2020.09.08"]
[Round "3"]
[White "PattyCastillo"]
[Black "Sofiia_Hryzlova"]
[Result "0-1"]
[WhiteElo "1908"]
[BlackElo "2285"]
[TimeControl "180+1"]
[EndTime "10:29:52 PDT"]
[Termination "Sofiia_Hryzlova won on time"]

1. d4 {[%clk 0:02:52.8]} 1... Nf6 {[%clk 0:02:58.6]} 2. Nf3 {[%clk 0:02:51.6]}
2... e6 {[%clk 0:02:58.2]} 3. e3 {[%clk 0:02:51.4]} 3... b6 {[%clk 0:02:57.4]}
4. Bd3 {[%clk 0:02:50.2]} 4... Bb7 {[%clk 0:02:56.3]} 5. b3 {[%clk 0:02:50.1]}
5... g6 {[%clk 0:02:50]} 6. Bb2 {[%clk 0:02:49.6]} 6... Bg7 {[%clk 0:02:50.2]}
7. O-O {[%clk 0:02:49.5]} 7... O-O {[%clk 0:02:50.7]} 8. Nbd2 {[%clk 0:02:49.8]}
8... d5 {[%clk 0:02:49.9]} 9. Qe2 {[%clk 0:02:49.1]} 9... Ne4 {[%clk 0:02:47.7]}
10. Ne5 {[%clk 0:02:37.7]} 10... Nd7 {[%clk 0:02:37.1]} 11. f4 {[%clk
0:02:34.3]} 11... f6 {[%clk 0:02:31.9]} 12. Nef3 {[%clk 0:02:25.1]} 12... c5
{[%clk 0:02:27.6]} 13. c4 {[%clk 0:02:22.5]} 13... Qe7 {[%clk 0:02:22.2]} 14.
Rac1 {[%clk 0:02:11.3]} 14... Rac8 {[%clk 0:02:14.9]} 15. a3 {[%clk 0:02:09]}
15... a6 {[%clk 0:02:11.3]} 16. cxd5 {[%clk 0:01:59.7]} 16... exd5 {[%clk
0:02:10.5]} 17. Bxe4 {[%clk 0:01:39.5]} 17... dxe4 {[%clk 0:02:07.2]} 18. Ne1
{[%clk 0:01:39.4]} 18... f5 {[%clk 0:02:02.6]} 19. Nc4 {[%clk 0:01:31.1]} 19...
Bd5 {[%clk 0:01:57.2]} 20. Ne5 {[%clk 0:01:25.9]} 20... Bxb3 {[%clk 0:01:48.7]}
21. Qxa6 {[%clk 0:01:18.3]} 21... Nxe5 {[%clk 0:01:42.2]} 22. fxe5 {[%clk
0:01:08.2]} 22... Rb8 {[%clk 0:01:32.4]} 23. Qb5 {[%clk 0:01:01.7]} 23... c4
{[%clk 0:01:14.6]} 24. Rxc4 {[%clk 0:00:52.5]} 24... Bxc4 {[%clk 0:01:11.6]} 25.
Qxc4+ {[%clk 0:00:52.2]} 25... Kh8 {[%clk 0:01:12.4]} 26. g3 {[%clk 0:00:43.3]}
26... Rfc8 {[%clk 0:01:09.1]} 27. Qb3 {[%clk 0:00:42.8]} 27... b5 {[%clk
0:00:42.1]} 28. Ng2 {[%clk 0:00:38]} 28... b4 {[%clk 0:00:39.8]} 29. a4 {[%clk
0:00:35.4]} 29... Ra8 {[%clk 0:00:34]} 30. Nf4 {[%clk 0:00:33.6]} 30... Rcb8
{[%clk 0:00:28.2]} 31. d5 {[%clk 0:00:30.3]} 31... Bxe5 {[%clk 0:00:27]} 32.
Bxe5+ {[%clk 0:00:27.6]} 32... Qxe5 {[%clk 0:00:26.9]} 33. Ne6 {[%clk
0:00:20.9]} 33... Ra5 {[%clk 0:00:23.3]} 34. Rd1 {[%clk 0:00:18.2]} 34... Re8
{[%clk 0:00:22.5]} 35. Ng5 {[%clk 0:00:16.5]} 35... Qe7 {[%clk 0:00:20.6]} 36.
d6 {[%clk 0:00:14.1]} 36... Qxg5 {[%clk 0:00:20.2]} 37. d7 {[%clk 0:00:11.9]}
37... Rd8 {[%clk 0:00:20.3]} 38. Qxb4 {[%clk 0:00:09.5]} 38... Ra7 {[%clk
0:00:19.4]} 39. Qd4+ {[%clk 0:00:08.7]} 39... Kg8 {[%clk 0:00:17.9]} 40. Qxa7
{[%clk 0:00:08.8]} 40... Kf7 {[%clk 0:00:16.4]} 41. Qb6 {[%clk 0:00:04.4]} 41...
Ke7 {[%clk 0:00:15.4]} 42. Qb4+ {[%clk 0:00:02.9]} 42... Kf7 {[%clk 0:00:14.9]}
43. Qc4+ {[%clk 0:00:02.6]} 43... Kg7 {[%clk 0:00:14.6]} 44. Qd4+ {[%clk
0:00:02.4]} 44... Kh6 {[%clk 0:00:14.4]} 45. Qb6 {[%clk 0:00:01.3]} 45... Qe7
{[%clk 0:00:13.9]} 0-1

[Event "*** SCC Grand Prix: Titled Tuesday Blitz"]
[Site "Chess.com"]
[Date "2020.09.08"]
[Round "3"]
[White "RU_B9"]
[Black "annamaja"]
[Result "0-1"]
[WhiteElo "1851"]
[BlackElo "2274"]
[TimeControl "180+1"]
[EndTime "10:29:52 PDT"]
[Termination "annamaja won on time"]

1. c4 {[%clk 0:03:00.9]} 1... e5 {[%clk 0:02:59.7]} 2. Nc3 {[%clk 0:02:59.9]}
2... Nf6 {[%clk 0:02:59.9]} 3. Nf3 {[%clk 0:03:00.5]} 3... Nc6 {[%clk
0:02:59.6]} 4. e3 {[%clk 0:03:00.9]} 4... Bb4 {[%clk 0:02:42.8]} 5. Qc2 {[%clk
0:03:00.6]} 5... O-O {[%clk 0:02:40.9]} 6. Nd5 {[%clk 0:02:57]} 6... Bc5 {[%clk
0:02:31]} 7. Qf5 {[%clk 0:02:52.1]} 7... d6 {[%clk 0:02:23.8]} 8. Nxf6+ {[%clk
0:02:51.4]} 8... Qxf6 {[%clk 0:02:24]} 9. Qxf6 {[%clk 0:02:51.3]} 9... gxf6
{[%clk 0:02:24.9]} 10. g4 {[%clk 0:02:35.1]} 10... Kh8 {[%clk 0:02:06.5]} 11.
Rg1 {[%clk 0:02:18.2]} 11... Rg8 {[%clk 0:01:55.8]} 12. h3 {[%clk 0:02:13.1]}
12... Be6 {[%clk 0:01:47.2]} 13. a3 {[%clk 0:02:12.3]} 13... a5 {[%clk
0:01:46.8]} 14. b3 {[%clk 0:02:07.5]} 14... f5 {[%clk 0:01:26.5]} 15. g5 {[%clk
0:01:32.4]} 15... Kg7 {[%clk 0:00:53.1]} 16. Bb2 {[%clk 0:01:31.7]} 16... Kf8
{[%clk 0:00:52.4]} 17. d4 {[%clk 0:01:14.2]} 17... e4 {[%clk 0:00:32.5]} 18. Nd2
{[%clk 0:01:04.4]} 18... Ba7 {[%clk 0:00:20.5]} 19. d5 {[%clk 0:01:04]} 19...
Bxd5 {[%clk 0:00:20.1]} 20. cxd5 {[%clk 0:01:03.7]} 20... Ne7 {[%clk 0:00:20.8]}
21. Bc4 {[%clk 0:00:57.8]} 21... h6 {[%clk 0:00:20.8]} 22. h4 {[%clk 0:00:55.7]}
22... c6 {[%clk 0:00:17.5]} 23. dxc6 {[%clk 0:00:52.4]} 23... bxc6 {[%clk
0:00:17]} 24. O-O-O {[%clk 0:00:44.4]} 24... d5 {[%clk 0:00:16.3]} 25. Be2
{[%clk 0:00:44.4]} 25... hxg5 {[%clk 0:00:15]} 26. Rxg5 {[%clk 0:00:43.3]} 26...
Rxg5 {[%clk 0:00:14.3]} 27. hxg5 {[%clk 0:00:43.8]} 27... Ng6 {[%clk 0:00:15]}
28. Nf1 {[%clk 0:00:33.5]} 28... Rb8 {[%clk 0:00:11.4]} 29. Kc2 {[%clk
0:00:31.3]} 29... Ke7 {[%clk 0:00:11.1]} 30. Ng3 {[%clk 0:00:30.1]} 30... Ke6
{[%clk 0:00:11.5]} 31. Rh1 {[%clk 0:00:24.3]} 31... f4 {[%clk 0:00:11.1]} 32.
exf4 {[%clk 0:00:20.6]} 32... Nxf4 {[%clk 0:00:11.2]} 33. Bf1 {[%clk 0:00:19.7]}
33... Bxf2 {[%clk 0:00:09.8]} 34. Rh6+ {[%clk 0:00:18.1]} 34... Kd7 {[%clk
0:00:03.6]} 35. Ne2 {[%clk 0:00:14.2]} 35... Ng6 {[%clk 0:00:03.2]} 36. Bh3+
{[%clk 0:00:11]} 36... Ke7 {[%clk 0:00:01.6]} 37. Bf6+ {[%clk 0:00:09]} 37...
Kd6 {[%clk 0:00:02.2]} 38. Kc3 {[%clk 0:00:05.4]} 38... c5 {[%clk 0:00:01.8]}
39. Rh7 {[%clk 0:00:04.5]} 39... Kc6 {[%clk 0:00:01.8]} 40. Rxf7 {[%clk
0:00:03.5]} 40... d4+ {[%clk 0:00:02.6]} 41. Kc2 {[%clk 0:00:02.3]} 41... d3+
{[%clk 0:00:03.1]} 42. Kd2 {[%clk 0:00:02.6]} 42... dxe2 {[%clk 0:00:03.3]} 43.
Kxe2 {[%clk 0:00:03.3]} 43... Bd4 {[%clk 0:00:03.4]} 0-1

[Event "*** SCC Grand Prix: Titled Tuesday Blitz"]
[Site "Chess.com"]
[Date "2020.09.08"]
[Round "3"]
[White "vugarrasulov"]
[Black "Love_craft"]
[Result "1-0"]
[WhiteElo "2831"]
[BlackElo "2603"]
[TimeControl "180+1"]
[EndTime "10:29:53 PDT"]
[Termination "vugarrasulov won on time"]

1. e4 {[%clk 0:03:00.9]} 1... g6 {[%clk 0:02:58.4]} 2. d4 {[%clk 0:03:00]} 2...
Bg7 {[%clk 0:02:58.7]} 3. Nf3 {[%clk 0:03:00.2]} 3... d6 {[%clk 0:02:59.1]} 4.
c3 {[%clk 0:02:59.7]} 4... Nd7 {[%clk 0:02:57.9]} 5. Bd3 {[%clk 0:02:59.2]} 5...
e5 {[%clk 0:02:56.7]} 6. O-O {[%clk 0:02:59.7]} 6... Ngf6 {[%clk 0:02:56.8]} 7.
h3 {[%clk 0:02:59.4]} 7... O-O {[%clk 0:02:56.9]} 8. Re1 {[%clk 0:02:59.7]} 8...
Qe7 {[%clk 0:02:57.2]} 9. Nbd2 {[%clk 0:02:59.9]} 9... b6 {[%clk 0:02:57.5]} 10.
Nf1 {[%clk 0:02:59.7]} 10... Nh5 {[%clk 0:02:56.2]} 11. a4 {[%clk 0:02:53.8]}
11... a5 {[%clk 0:02:55.7]} 12. Ne3 {[%clk 0:02:49.6]} 12... Nf4 {[%clk
0:02:54.9]} 13. Bf1 {[%clk 0:02:40.4]} 13... Nf6 {[%clk 0:02:54.8]} 14. dxe5
{[%clk 0:02:28.5]} 14... dxe5 {[%clk 0:02:55.7]} 15. Nc4 {[%clk 0:02:22]} 15...
Rd8 {[%clk 0:02:52.2]} 16. Qc2 {[%clk 0:02:22]} 16... Nd7 {[%clk 0:02:42.4]} 17.
b3 {[%clk 0:02:14.5]} 17... Nc5 {[%clk 0:02:31.1]} 18. Ba3 {[%clk 0:02:14.3]}
18... Bb7 {[%clk 0:02:31.3]} 19. Rad1 {[%clk 0:02:09.4]} 19... f6 {[%clk
0:02:21.6]} 20. g3 {[%clk 0:02:04.9]} 20... Nfe6 {[%clk 0:02:15.7]} 21. Ne3
{[%clk 0:02:02.7]} 21... Bf8 {[%clk 0:01:56.9]} 22. Nd5 {[%clk 0:01:57.2]} 22...
Qf7 {[%clk 0:01:57]} 23. Bc4 {[%clk 0:01:51.6]} 23... Kg7 {[%clk 0:01:47.1]} 24.
Bc1 {[%clk 0:01:50.4]} 24... Rd6 {[%clk 0:01:41.5]} 25. Nh2 {[%clk 0:01:40.1]}
25... h5 {[%clk 0:01:31.9]} 26. Nf1 {[%clk 0:01:31.5]} 26... Rad8 {[%clk
0:01:30.2]} 27. Nfe3 {[%clk 0:01:31.1]} 27... Qd7 {[%clk 0:01:15.9]} 28. b4
{[%clk 0:01:19.6]} 28... axb4 {[%clk 0:01:13.1]} 29. cxb4 {[%clk 0:01:20.5]}
29... Nxa4 {[%clk 0:00:57.5]} 30. Bb3 {[%clk 0:01:17.1]} 30... b5 {[%clk
0:00:52.4]} 31. Qd2 {[%clk 0:01:02.4]} 31... Nd4 {[%clk 0:00:34.2]} 32. Nf5+
{[%clk 0:00:47.6]} 32... Nxf5 {[%clk 0:00:31.8]} 33. exf5 {[%clk 0:00:44.5]}
33... Bxd5 {[%clk 0:00:28.8]} 34. Qh6+ {[%clk 0:00:29.2]} 34... Kg8 {[%clk
0:00:29]} 35. Qxg6+ {[%clk 0:00:29.6]} 35... Qg7 {[%clk 0:00:29.1]} 36. Rxd5
{[%clk 0:00:25.6]} 36... Rxd5 {[%clk 0:00:27]} 37. Qxh5 {[%clk 0:00:26.2]} 37...
c6 {[%clk 0:00:21.6]} 38. Re4 {[%clk 0:00:25.6]} 38... Qf7 {[%clk 0:00:16.7]}
39. Rg4+ {[%clk 0:00:22.8]} 39... Bg7 {[%clk 0:00:17]} 40. Rg6 {[%clk
0:00:19.2]} 40... Kf8 {[%clk 0:00:06.9]} 41. Bh6 {[%clk 0:00:18]} 41... Bxh6
{[%clk 0:00:04.2]} 42. Qxh6+ {[%clk 0:00:18.9]} 42... Ke8 {[%clk 0:00:01.3]} 43.
Rg7 {[%clk 0:00:16.2]} 1-0

[Event "*** SCC Grand Prix: Titled Tuesday Blitz"]
[Site "Chess.com"]
[Date "2020.09.08"]
[Round "3"]
[White "OminousOmen"]
[Black "RobertoJBM"]
[Result "1-0"]
[WhiteElo "2935"]
[BlackElo "2674"]
[TimeControl "180+1"]
[EndTime "10:29:54 PDT"]
[Termination "OminousOmen won on time"]

1. d4 {[%clk 0:03:00.9]} 1... d5 {[%clk 0:02:59.4]} 2. c4 {[%clk 0:03:00]} 2...
c6 {[%clk 0:02:59.6]} 3. Nf3 {[%clk 0:03:00.5]} 3... Nf6 {[%clk 0:02:59.8]} 4.
Nc3 {[%clk 0:03:00.9]} 4... dxc4 {[%clk 0:03:00.2]} 5. e4 {[%clk 0:03:00.9]}
5... b5 {[%clk 0:03:00]} 6. Be2 {[%clk 0:03:01.5]} 6... e6 {[%clk 0:02:55.4]} 7.
O-O {[%clk 0:03:00.4]} 7... a6 {[%clk 0:02:54.6]} 8. Bg5 {[%clk 0:02:45.5]} 8...
h6 {[%clk 0:02:53.9]} 9. Bh4 {[%clk 0:02:37.4]} 9... Bb7 {[%clk 0:02:51.9]} 10.
e5 {[%clk 0:02:12.5]} 10... g5 {[%clk 0:02:51.4]} 11. Nxg5 {[%clk 0:02:12.9]}
11... hxg5 {[%clk 0:02:51.4]} 12. Bxg5 {[%clk 0:02:13.8]} 12... Be7 {[%clk
0:02:39.9]} 13. exf6 {[%clk 0:02:11.8]} 13... Bxf6 {[%clk 0:02:40.8]} 14. Bxf6
{[%clk 0:02:02.7]} 14... Qxf6 {[%clk 0:02:41.7]} 15. Bf3 {[%clk 0:02:02.9]}
15... Nd7 {[%clk 0:02:39.7]} 16. Ne4 {[%clk 0:01:59.8]} 16... Qe7 {[%clk
0:02:30]} 17. b3 {[%clk 0:01:57.6]} 17... f5 {[%clk 0:02:23.5]} 18. Ng3 {[%clk
0:01:48.7]} 18... cxb3 {[%clk 0:02:22.8]} 19. Qxb3 {[%clk 0:01:11.9]} 19...
O-O-O {[%clk 0:02:09.6]} 20. a4 {[%clk 0:01:11.4]} 20... b4 {[%clk 0:02:01.2]}
21. Rac1 {[%clk 0:01:01.2]} 21... Qd6 {[%clk 0:01:53.2]} 22. a5 {[%clk
0:01:01.6]} 22... Kb8 {[%clk 0:01:51]} 23. Rc4 {[%clk 0:00:56.2]} 23... c5
{[%clk 0:01:50.2]} 24. Bxb7 {[%clk 0:00:55.9]} 24... Kxb7 {[%clk 0:01:50]} 25.
dxc5 {[%clk 0:00:56]} 25... Qc6 {[%clk 0:01:43.2]} 26. Rxb4+ {[%clk 0:00:46.9]}
26... Ka8 {[%clk 0:01:43.2]} 27. Rb1 {[%clk 0:00:39.2]} 27... Rb8 {[%clk
0:01:41.4]} 28. Qc4 {[%clk 0:00:29.7]} 28... Rxb4 {[%clk 0:01:37.6]} 29. Rxb4
{[%clk 0:00:30.6]} 29... Ka7 {[%clk 0:01:22.5]} 30. Ne2 {[%clk 0:00:23.8]} 30...
Qxc5 {[%clk 0:01:16.6]} 31. Qxc5+ {[%clk 0:00:24.4]} 31... Nxc5 {[%clk
0:01:17.5]} 32. Nd4 {[%clk 0:00:25.1]} 32... Rc8 {[%clk 0:01:15.3]} 33. h4
{[%clk 0:00:21.4]} 33... f4 {[%clk 0:01:07.2]} 34. Rb6 {[%clk 0:00:19.8]} 34...
e5 {[%clk 0:01:00.6]} 35. Nc6+ {[%clk 0:00:20]} 35... Ka8 {[%clk 0:01:01.1]} 36.
Nxe5 {[%clk 0:00:20.7]} 36... Re8 {[%clk 0:00:54.6]} 37. Nc6 {[%clk 0:00:19.6]}
37... Nd7 {[%clk 0:00:46.7]} 38. Rb4 {[%clk 0:00:15.6]} 38... Re6 {[%clk
0:00:44.2]} 39. Nd4 {[%clk 0:00:12.7]} 39... Re5 {[%clk 0:00:43.4]} 40. Nf3
{[%clk 0:00:11.6]} 40... Rxa5 {[%clk 0:00:43.4]} 41. Rxf4 {[%clk 0:00:12.2]}
41... Rd5 {[%clk 0:00:41.2]} 42. g4 {[%clk 0:00:12.5]} 42... a5 {[%clk
0:00:38.1]} 43. h5 {[%clk 0:00:13]} 43... Kb7 {[%clk 0:00:35]} 44. h6 {[%clk
0:00:13.3]} 44... Rd6 {[%clk 0:00:31.3]} 45. g5 {[%clk 0:00:13.8]} 45... Rc6
{[%clk 0:00:24.5]} 46. h7 {[%clk 0:00:13.2]} 46... Rc8 {[%clk 0:00:24.7]} 47. g6
{[%clk 0:00:13.3]} 1-0

[Event "*** SCC Grand Prix: Titled Tuesday Blitz"]
[Site "Chess.com"]
[Date "2020.09.08"]
[Round "3"]
[White "Alindsay211"]
[Black "szefru"]
[Result "1-0"]
[WhiteElo "2323"]
[BlackElo "2060"]
[TimeControl "180+1"]
[EndTime "10:29:54 PDT"]
[Termination "Alindsay211 won by resignation"]

1. d4 {[%clk 0:03:00.9]} 1... Nf6 {[%clk 0:02:59.2]} 2. Nf3 {[%clk 0:02:59.4]}
2... g6 {[%clk 0:02:59.1]} 3. g3 {[%clk 0:02:59.2]} 3... Bg7 {[%clk 0:02:57.9]}
4. Bg2 {[%clk 0:02:59.3]} 4... O-O {[%clk 0:02:57.9]} 5. O-O {[%clk 0:02:59.1]}
5... d5 {[%clk 0:02:58.5]} 6. Bf4 {[%clk 0:02:56.7]} 6... c6 {[%clk 0:02:58.8]}
7. c3 {[%clk 0:02:54.9]} 7... Nbd7 {[%clk 0:02:49.2]} 8. Ne5 {[%clk 0:02:52.5]}
8... Nxe5 {[%clk 0:02:46.9]} 9. Bxe5 {[%clk 0:02:53.4]} 9... Ng4 {[%clk
0:02:45.2]} 10. Bxg7 {[%clk 0:02:52.4]} 10... Kxg7 {[%clk 0:02:46.1]} 11. e4
{[%clk 0:02:47.6]} 11... Nf6 {[%clk 0:02:45.8]} 12. Nd2 {[%clk 0:02:46.6]} 12...
dxe4 {[%clk 0:02:42.3]} 13. Nxe4 {[%clk 0:02:47.5]} 13... Nxe4 {[%clk
0:02:42.3]} 14. Bxe4 {[%clk 0:02:48.4]} 14... Bh3 {[%clk 0:02:39.3]} 15. Re1
{[%clk 0:02:47.1]} 15... Qd6 {[%clk 0:02:37.4]} 16. Qe2 {[%clk 0:02:40.6]} 16...
Rae8 {[%clk 0:02:30.1]} 17. Bh1 {[%clk 0:02:28.5]} 17... h5 {[%clk 0:02:24.7]}
18. Qe5+ {[%clk 0:02:24.4]} 18... Qxe5 {[%clk 0:02:22.8]} 19. Rxe5 {[%clk
0:02:25.3]} 19... e6 {[%clk 0:02:01.5]} 20. Rae1 {[%clk 0:02:16.7]} 20... Bf5
{[%clk 0:01:52.5]} 21. Bf3 {[%clk 0:02:04.2]} 21... Bg4 {[%clk 0:01:30.4]} 22.
Kg2 {[%clk 0:01:59.2]} 22... Bxf3+ {[%clk 0:01:28.2]} 23. Kxf3 {[%clk
0:02:00.1]} 23... Kf6 {[%clk 0:01:25.5]} 24. Ke3 {[%clk 0:01:47.6]} 24... Rd8
{[%clk 0:01:20.1]} 25. Kd3 {[%clk 0:01:30.6]} 25... b6 {[%clk 0:01:05.4]} 26. a4
{[%clk 0:01:22.3]} 26... c5 {[%clk 0:01:05.3]} 27. R5e4 {[%clk 0:01:13.1]} 27...
Rd6 {[%clk 0:01:04.1]} 28. Kc4 {[%clk 0:01:06.6]} 28... cxd4 {[%clk 0:00:57.8]}
29. Rxd4 {[%clk 0:01:05.1]} 29... Rc8+ {[%clk 0:00:57.5]} 30. Kd3 {[%clk
0:01:00.4]} 30... Rxd4+ {[%clk 0:00:57.7]} 31. Kxd4 {[%clk 0:01:01.3]} 31...
Rd8+ {[%clk 0:00:55.8]} 32. Ke3 {[%clk 0:01:00.4]} 32... Rd5 {[%clk 0:00:53.7]}
33. Rc1 {[%clk 0:00:44.7]} 33... h4 {[%clk 0:00:49.3]} 34. c4 {[%clk 0:00:40.4]}
34... Ra5 {[%clk 0:00:46.9]} 35. b3 {[%clk 0:00:39.2]} 35... hxg3 {[%clk
0:00:46.4]} 36. hxg3 {[%clk 0:00:39]} 36... g5 {[%clk 0:00:44.1]} 37. Kd4 {[%clk
0:00:36.5]} 37... Rf5 {[%clk 0:00:42.8]} 38. Rc2 {[%clk 0:00:32.2]} 38... Rf3
{[%clk 0:00:41.4]} 39. b4 {[%clk 0:00:31.4]} 39... g4 {[%clk 0:00:41.6]} 40. c5
{[%clk 0:00:31.1]} 40... e5+ {[%clk 0:00:37.9]} 41. Kd5 {[%clk 0:00:26.3]} 41...
Rd3+ {[%clk 0:00:34.5]} 42. Kc6 {[%clk 0:00:26.3]} 42... bxc5 {[%clk 0:00:32.8]}
43. bxc5 {[%clk 0:00:26.5]} 43... Ke6 {[%clk 0:00:30.4]} 44. Kb7 {[%clk
0:00:24.6]} 44... Rd8 {[%clk 0:00:22.9]} 45. c6 {[%clk 0:00:23.4]} 45... Rd3
{[%clk 0:00:10]} 46. c7 {[%clk 0:00:21.8]} 46... Kd7 {[%clk 0:00:09.6]} 47.
c8=Q+ {[%clk 0:00:20.7]} 1-0

[Event "*** SCC Grand Prix: Titled Tuesday Blitz"]
[Site "Chess.com"]
[Date "2020.09.08"]
[Round "3"]
[White "CalinGheorghiu"]
[Black "PawnEatingZombie"]
[Result "0-1"]
[WhiteElo "2338"]
[BlackElo "2149"]
[TimeControl "180+1"]
[EndTime "10:29:55 PDT"]
[Termination "PawnEatingZombie won on time"]

1. e4 {[%clk 0:03:00.9]} 1... c6 {[%clk 0:02:59.6]} 2. d4 {[%clk 0:02:57]} 2...
d5 {[%clk 0:03:00]} 3. Nc3 {[%clk 0:02:55.3]} 3... dxe4 {[%clk 0:02:59.5]} 4.
Nxe4 {[%clk 0:02:55.9]} 4... Bf5 {[%clk 0:03:00]} 5. Ng3 {[%clk 0:02:55.5]} 5...
Bg6 {[%clk 0:03:00.6]} 6. Nf3 {[%clk 0:02:55.6]} 6... Nd7 {[%clk 0:02:59.9]} 7.
h4 {[%clk 0:02:54.2]} 7... h6 {[%clk 0:03:00]} 8. Bd3 {[%clk 0:02:52]} 8... Bxd3
{[%clk 0:02:59.1]} 9. Qxd3 {[%clk 0:02:51.8]} 9... e6 {[%clk 0:02:59.4]} 10. Bd2
{[%clk 0:02:50.6]} 10... Ngf6 {[%clk 0:02:56.1]} 11. O-O-O {[%clk 0:02:50.3]}
11... Be7 {[%clk 0:02:56]} 12. h5 {[%clk 0:02:49.5]} 12... Qb6 {[%clk
0:02:53.9]} 13. Ne5 {[%clk 0:02:39.7]} 13... Rd8 {[%clk 0:02:48.9]} 14. Nc4
{[%clk 0:02:02.3]} 14... Qc7 {[%clk 0:02:35.3]} 15. f4 {[%clk 0:01:55.4]} 15...
O-O {[%clk 0:02:23.9]} 16. Qf3 {[%clk 0:01:49]} 16... c5 {[%clk 0:02:16.6]} 17.
Bc3 {[%clk 0:01:27.5]} 17... Nd5 {[%clk 0:02:08.8]} 18. f5 {[%clk 0:01:18.5]}
18... Bg5+ {[%clk 0:01:55.1]} 19. Bd2 {[%clk 0:01:12.2]} 19... Bxd2+ {[%clk
0:01:51.4]} 20. Rxd2 {[%clk 0:01:12.2]} 20... cxd4 {[%clk 0:01:43.6]} 21. Rxd4
{[%clk 0:01:10.5]} 21... b5 {[%clk 0:01:26.7]} 22. Nd2 {[%clk 0:01:04.7]} 22...
Ne5 {[%clk 0:01:10.5]} 23. Qe2 {[%clk 0:00:53.5]} 23... Rc8 {[%clk 0:01:06.3]}
24. Nb3 {[%clk 0:00:41.1]} 24... Nc6 {[%clk 0:00:59.1]} 25. Rg4 {[%clk
0:00:39.4]} 25... Ncb4 {[%clk 0:00:46.7]} 26. Kb1 {[%clk 0:00:21.5]} 26... Qxc2+
{[%clk 0:00:41.8]} 27. Qxc2 {[%clk 0:00:21]} 27... Nxc2 {[%clk 0:00:38.5]} 28.
Rc1 {[%clk 0:00:16.4]} 28... Nce3 {[%clk 0:00:36.5]} 29. Rxc8 {[%clk 0:00:16.3]}
29... Rxc8 {[%clk 0:00:37]} 30. Re4 {[%clk 0:00:16.8]} 30... Nxg2 {[%clk
0:00:28.6]} 31. fxe6 {[%clk 0:00:15.3]} 31... fxe6 {[%clk 0:00:28.1]} 32. Rxe6
{[%clk 0:00:15.7]} 32... Ngf4 {[%clk 0:00:24.5]} 33. Ra6 {[%clk 0:00:14.6]}
33... Re8 {[%clk 0:00:18.6]} 34. Rxa7 {[%clk 0:00:12.1]} 34... Re1+ {[%clk
0:00:18.5]} 35. Kc2 {[%clk 0:00:12.3]} 35... Rg1 {[%clk 0:00:19.4]} 36. Nf5
{[%clk 0:00:10.4]} 36... Nxh5 {[%clk 0:00:16.9]} 37. Nbd4 {[%clk 0:00:10.8]}
37... Rg2+ {[%clk 0:00:14.8]} 38. Kb3 {[%clk 0:00:10.9]} 38... Nhf4 {[%clk
0:00:12.5]} 39. Nxb5 {[%clk 0:00:10.7]} 39... h5 {[%clk 0:00:12.1]} 40. Nbd4
{[%clk 0:00:05.9]} 40... Nd3 {[%clk 0:00:06.6]} 41. a4 {[%clk 0:00:03.9]} 41...
g5 {[%clk 0:00:04.5]} 42. Rg7+ {[%clk 0:00:02.5]} 42... Kh8 {[%clk 0:00:02.8]}
43. Ne6 {[%clk 0:00:02.3]} 43... h4 {[%clk 0:00:02.1]} 0-1

[Event "*** SCC Grand Prix: Titled Tuesday Blitz"]
[Site "Chess.com"]
[Date "2020.09.08"]
[Round "3"]
[White "AntonovaNadezhda"]
[Black "northridgehawk"]
[Result "0-1"]
[WhiteElo "2045"]
[BlackElo "2314"]
[TimeControl "180+1"]
[EndTime "10:29:55 PDT"]
[Termination "northridgehawk won on time"]

1. d4 {[%clk 0:03:00.9]} 1... Nf6 {[%clk 0:02:59.4]} 2. Nf3 {[%clk 0:03:01.3]}
2... g6 {[%clk 0:02:59.8]} 3. g3 {[%clk 0:03:00.2]} 3... Bg7 {[%clk 0:03:00.2]}
4. b3 {[%clk 0:03:00.6]} 4... O-O {[%clk 0:03:00.5]} 5. Bb2 {[%clk 0:03:01.1]}
5... d5 {[%clk 0:03:00.8]} 6. Bg2 {[%clk 0:03:01.5]} 6... c6 {[%clk 0:02:59.4]}
7. O-O {[%clk 0:03:01.9]} 7... a5 {[%clk 0:02:58.9]} 8. c4 {[%clk 0:03:01.3]}
8... Nbd7 {[%clk 0:02:58.1]} 9. Nc3 {[%clk 0:03:01.2]} 9... a4 {[%clk
0:02:54.8]} 10. Nxa4 {[%clk 0:02:59.3]} 10... dxc4 {[%clk 0:02:54.7]} 11. bxc4
{[%clk 0:02:59]} 11... Qa5 {[%clk 0:02:50.9]} 12. Nc3 {[%clk 0:02:56.3]} 12...
Nb6 {[%clk 0:02:49]} 13. Qb3 {[%clk 0:02:53]} 13... Be6 {[%clk 0:02:45.5]} 14.
Nd2 {[%clk 0:02:50.8]} 14... Nxc4 {[%clk 0:02:37]} 15. Nxc4 {[%clk 0:02:44.5]}
15... b5 {[%clk 0:02:36.8]} 16. Bxc6 {[%clk 0:02:37.9]} 16... Bxc4 {[%clk
0:02:36]} 17. Qc2 {[%clk 0:02:35.5]} 17... Rac8 {[%clk 0:02:33.6]} 18. Bg2
{[%clk 0:02:33.5]} 18... Nd7 {[%clk 0:02:23.8]} 19. Qd2 {[%clk 0:02:22.7]} 19...
Rfd8 {[%clk 0:02:20.7]} 20. Rfd1 {[%clk 0:02:18]} 20... Nc5 {[%clk 0:02:16.4]}
21. d5 {[%clk 0:02:07.7]} 21... Rd7 {[%clk 0:02:03.2]} 22. Qe3 {[%clk
0:01:36.4]} 22... b4 {[%clk 0:01:43.4]} 23. Rd4 {[%clk 0:01:17.6]} 23... bxc3
{[%clk 0:01:26.3]} 24. Bxc3 {[%clk 0:01:15.1]} 24... Qa4 {[%clk 0:01:16.8]} 25.
Bh3 {[%clk 0:00:59.7]} 25... f5 {[%clk 0:01:06.3]} 26. f4 {[%clk 0:00:41]} 26...
Rxd5 {[%clk 0:00:36.8]} 27. Rxd5 {[%clk 0:00:30.2]} 27... Bxd5 {[%clk
0:00:36.2]} 28. Bxg7 {[%clk 0:00:30.5]} 28... Kxg7 {[%clk 0:00:36.3]} 29. g4
{[%clk 0:00:30.2]} 29... Qe4 {[%clk 0:00:30.7]} 30. Qc3+ {[%clk 0:00:24.5]}
30... e5 {[%clk 0:00:23.3]} 31. Qxe5+ {[%clk 0:00:19.3]} 31... Qxe5 {[%clk
0:00:23.2]} 32. fxe5 {[%clk 0:00:20]} 32... fxg4 {[%clk 0:00:23.4]} 33. Bxg4
{[%clk 0:00:19.8]} 33... Re8 {[%clk 0:00:23.4]} 34. Rc1 {[%clk 0:00:17.9]} 34...
Ne6 {[%clk 0:00:18.2]} 35. Rd1 {[%clk 0:00:15.9]} 35... Bxa2 {[%clk 0:00:17.8]}
36. Rd7+ {[%clk 0:00:14.7]} 36... Kh6 {[%clk 0:00:18.3]} 37. Ra7 {[%clk
0:00:12.3]} 37... Bd5 {[%clk 0:00:17.6]} 38. Kf2 {[%clk 0:00:11.9]} 38... Kg5
{[%clk 0:00:17.1]} 39. Bxe6 {[%clk 0:00:09.8]} 39... Bxe6 {[%clk 0:00:16.7]} 40.
Rxh7 {[%clk 0:00:10.3]} 40... Bf5 {[%clk 0:00:17.1]} 41. h4+ {[%clk 0:00:07.8]}
41... Kf4 {[%clk 0:00:16.5]} 42. h5 {[%clk 0:00:07.1]} 42... g5 {[%clk
0:00:14.7]} 43. Rf7 {[%clk 0:00:05.6]} 43... Rxe5 {[%clk 0:00:14.2]} 44. h6
{[%clk 0:00:05.5]} 44... Kg4 {[%clk 0:00:13.2]} 45. h7 {[%clk 0:00:04.4]} 45...
Re8 {[%clk 0:00:13]} 46. Rg7 {[%clk 0:00:02.6]} 46... Rh8 {[%clk 0:00:13]} 47.
e4 {[%clk 0:00:01.2]} 47... Bxe4 {[%clk 0:00:12.7]} 48. Re7 {[%clk 0:00:01.8]}
48... Bxh7 {[%clk 0:00:13.1]} 0-1